[Event "Chessable Masters - Torneo preliminare"]
[White "Ponkratov, Pavel"]
[Black "Petrov, Nikita"]
[WhiteFideId "4157800"]
[BlackFideId "4101286"]
[WhiteElo "2586"]
[BlackElo "2514"]
[Result "0-1"]
[Round "4"]
[TimeControl "600+2"]
[Date "2023.03.13"]
[WhiteClock "0:02:43"]
[BlackClock "0:00:06"]

1. e4 {[%clk 0:10:01]}  e5 {[%clk 0:10:00]} 2. Nf3 {[%clk 0:10:02]}  Nc6 {[%clk 0:10:00]} 3. c3 {[%clk 0:10:00]}  Nf6 {[%clk 0:09:55]} 4. d3 {[%clk 0:09:57]}  d5 {[%clk 0:09:52]} 5. Nbd2 {[%clk 0:09:58]}  a5 {[%clk 0:09:49]} 6. Be2 {[%clk 0:09:57]}  Bc5 {[%clk 0:09:47]} 7. O-O {[%clk 0:09:53]}  O-O {[%clk 0:09:48]} 8. b3 {[%clk 0:09:50]}  Re8 {[%clk 0:09:38]} 9. a3 {[%clk 0:09:44]}  h6 {[%clk 0:08:13]} 10. Rb1 {[%clk 0:09:39]}  dxe4 {[%clk 0:07:40]} 11. dxe4 {[%clk 0:09:39]}  Be6 {[%clk 0:06:50]} 12. Bb5 {[%clk 0:09:34]}  Bg4 {[%clk 0:05:53]} 13. b4 {[%clk 0:09:24]}  axb4 {[%clk 0:05:53]} 14. axb4 {[%clk 0:09:25]}  Bd6 {[%clk 0:05:49]} 15. h3 {[%clk 0:09:19]}  Bd7 {[%clk 0:05:39]} 16. Bc4 {[%clk 0:09:11]}  Qe7 {[%clk 0:05:26]} 17. Qc2 {[%clk 0:09:01]}  Nh5 {[%clk 0:05:20]} 18. Rd1 {[%clk 0:08:40]}  Qf6 {[%clk 0:05:10]} 19. Nh2 {[%clk 0:08:22]}  Nf4 {[%clk 0:05:06]} 20. Ndf1 {[%clk 0:08:15]}  Qg6 {[%clk 0:04:31]} 21. Ng3 {[%clk 0:08:05]}  h5 {[%clk 0:04:03]} 22. Nf3 {[%clk 0:08:04]}  Qf6 {[%clk 0:04:04]} 23. h4 {[%clk 0:07:01]}  Be6 {[%clk 0:02:36]} 24. Bxe6 {[%clk 0:06:58]}  Qxe6 {[%clk 0:02:30]} 25. Bxf4 {[%clk 0:06:36]}  exf4 {[%clk 0:02:32]} 26. Nf5 {[%clk 0:06:37]}  Qxe4 {[%clk 0:01:52]} 27. Qxe4 {[%clk 0:06:31]}  Rxe4 {[%clk 0:01:54]} 28. Nxd6 {[%clk 0:06:27]}  cxd6 {[%clk 0:01:56]} 29. Rxd6 {[%clk 0:06:29]}  Ne5 {[%clk 0:01:01]} 30. Ng5 {[%clk 0:06:28]}  Re2 {[%clk 0:01:00]} 31. Rbd1 {[%clk 0:06:08]}  g6 {[%clk 0:01:00]} 32. R6d4 {[%clk 0:05:34]}  f3 {[%clk 0:00:37]} 33. gxf3 {[%clk 0:05:10]}  Raa2 {[%clk 0:00:33]} 34. Re4 {[%clk 0:04:51]}  Nxf3+ {[%clk 0:00:32]} 35. Kh1 {[%clk 0:04:08]}  Rxf2 {[%clk 0:00:33]} 36. Nxf3 {[%clk 0:04:08]}  Rxf3 {[%clk 0:00:35]} 37. c4 {[%clk 0:04:09]}  Rb2 {[%clk 0:00:20]} 38. c5 {[%clk 0:04:09]}  Rfb3 {[%clk 0:00:18]} 39. Rdd4 {[%clk 0:04:00]}  Rc2 {[%clk 0:00:19]} 40. Rd1 {[%clk 0:04:01]}  Kg7 {[%clk 0:00:21]} 41. Rf1 {[%clk 0:03:56]}  Rbb2 {[%clk 0:00:10]} 42. Rd1 {[%clk 0:03:50]}  Rh2+ {[%clk 0:00:10]} 43. Kg1 {[%clk 0:03:51]}  Rhg2+ {[%clk 0:00:12]} 44. Kh1 {[%clk 0:03:51]}  Rg4 {[%clk 0:00:09]} 45. Rdd4 {[%clk 0:03:32]}  Rb1+ {[%clk 0:00:05]} 46. Kh2 {[%clk 0:03:33]}  Rb2+ {[%clk 0:00:06]} 47. Kh1 {[%clk 0:03:34]}  Rxe4 {[%clk 0:00:04]} 48. Rxe4 {[%clk 0:03:35]}  Kf6 {[%clk 0:00:06]} 49. Kg1 {[%clk 0:03:29]}  Kf5 {[%clk 0:00:06]} 50. Re7 {[%clk 0:02:53]}  Rxb4 {[%clk 0:00:06]} 51. Rxf7+ {[%clk 0:02:54]}  Kg4 {[%clk 0:00:07]} 52. Kf2 {[%clk 0:02:43]}  Rf4+ {[%clk 0:00:06]} 0-1


[Site "Internet"]

[Event "Chessable Masters - Torneo preliminare"]
[White "Fier, Alexandr"]
[Black "Chirila, Ioan-Cristian"]
[WhiteFideId "2107139"]
[BlackFideId "1211668"]
[WhiteElo "2504"]
[BlackElo "2508"]
[Result "1-0"]
[Round "4"]
[TimeControl "600+2"]
[Date "2023.03.13"]
[WhiteClock "0:04:27"]
[BlackClock "0:01:48"]

1. e4 {[%clk 0:10:01]}  c5 {[%clk 0:09:43]} 2. Nf3 {[%clk 0:10:02]}  Nc6 {[%clk 0:09:45]} 3. Bb5 {[%clk 0:10:02]}  g6 {[%clk 0:09:46]} 4. Bxc6 {[%clk 0:09:57]}  dxc6 {[%clk 0:09:47]} 5. d3 {[%clk 0:09:58]}  Bg7 {[%clk 0:09:47]} 6. h3 {[%clk 0:09:59]}  Nf6 {[%clk 0:08:44]} 7. Nc3 {[%clk 0:09:58]}  Qc7 {[%clk 0:08:16]} 8. Be3 {[%clk 0:09:57]}  b6 {[%clk 0:08:15]} 9. Qd2 {[%clk 0:09:55]}  O-O {[%clk 0:07:54]} 10. Bh6 {[%clk 0:09:55]}  e5 {[%clk 0:07:35]} 11. Bxg7 {[%clk 0:09:55]}  Kxg7 {[%clk 0:07:37]} 12. O-O {[%clk 0:09:33]}  Nh5 {[%clk 0:07:21]} 13. Ne2 {[%clk 0:09:32]}  f5 {[%clk 0:06:59]} 14. exf5 {[%clk 0:09:16]}  Bxf5 {[%clk 0:06:59]} 15. Qe3 {[%clk 0:09:08]}  Nf4 {[%clk 0:06:04]} 16. Nxf4 {[%clk 0:09:03]}  exf4 {[%clk 0:06:04]} 17. Qd2 {[%clk 0:08:58]}  Be6 {[%clk 0:05:54]} 18. Rae1 {[%clk 0:08:55]}  Bd5 {[%clk 0:05:49]} 19. Ne5 {[%clk 0:08:54]}  h5 {[%clk 0:05:21]} 20. c4 {[%clk 0:08:42]}  Bg8 {[%clk 0:05:02]} 21. Re4 {[%clk 0:08:43]}  Rad8 {[%clk 0:04:44]} 22. Rfe1 {[%clk 0:08:39]}  Rd4 {[%clk 0:04:08]} 23. Qc3 {[%clk 0:08:03]}  Rxe4 {[%clk 0:03:55]} 24. Rxe4 {[%clk 0:08:03]}  Kh6 {[%clk 0:03:42]} 25. Nxc6 {[%clk 0:06:22]}  Qxc6 {[%clk 0:03:29]} 26. Qh8+ {[%clk 0:06:19]}  Kg5 {[%clk 0:03:26]} 27. Re5+ {[%clk 0:06:06]}  Kh4 {[%clk 0:02:38]} 28. Qg7 {[%clk 0:04:38]}  Re8 {[%clk 0:01:48]} 29. Kh2 {[%clk 0:04:27]} 1-0


[Site "Internet"]

[Event "Chessable Masters - Torneo preliminare"]
[White "Makhnev, Denis"]
[Black "Van Foreest, Jorden"]
[WhiteFideId "13707647"]
[BlackFideId "1039784"]
[WhiteElo "2505"]
[BlackElo "2682"]
[Result "0-1"]
[Round "4"]
[TimeControl "600+2"]
[Date "2023.03.13"]
[WhiteClock "0:00:13"]
[BlackClock "0:00:36"]

1. d4 {[%clk 0:10:01]}  Nf6 {[%clk 0:10:00]} 2. c4 {[%clk 0:10:02]}  c6 {[%clk 0:10:02]} 3. Nf3 {[%clk 0:10:02]}  d5 {[%clk 0:10:02]} 4. Nc3 {[%clk 0:10:01]}  dxc4 {[%clk 0:09:59]} 5. a4 {[%clk 0:10:01]}  e6 {[%clk 0:09:57]} 6. e3 {[%clk 0:09:35]}  c5 {[%clk 0:09:58]} 7. Bxc4 {[%clk 0:09:36]}  Nc6 {[%clk 0:09:59]} 8. O-O {[%clk 0:09:36]}  Be7 {[%clk 0:10:00]} 9. Qe2 {[%clk 0:09:36]}  O-O {[%clk 0:10:00]} 10. Rd1 {[%clk 0:09:38]}  Bd7 {[%clk 0:10:01]} 11. Ne5 {[%clk 0:08:12]}  cxd4 {[%clk 0:09:42]} 12. exd4 {[%clk 0:08:04]}  Nb4 {[%clk 0:09:42]} 13. Bg5 {[%clk 0:07:52]}  Bc6 {[%clk 0:09:38]} 14. Nxc6 {[%clk 0:07:23]}  bxc6 {[%clk 0:09:37]} 15. a5 {[%clk 0:07:24]}  Rb8 {[%clk 0:09:33]} 16. g3 {[%clk 0:06:58]}  Nfd5 {[%clk 0:09:31]} 17. Bc1 {[%clk 0:06:34]}  Qc7 {[%clk 0:09:18]} 18. Ne4 {[%clk 0:05:52]}  Rfd8 {[%clk 0:09:17]} 19. h4 {[%clk 0:05:31]}  h6 {[%clk 0:09:17]} 20. Nc5 {[%clk 0:03:58]}  Bxc5 {[%clk 0:08:42]} 21. dxc5 {[%clk 0:03:59]}  Qe7 {[%clk 0:08:43]} 22. b3 {[%clk 0:03:24]}  Qxc5 {[%clk 0:07:35]} 23. Bb2 {[%clk 0:03:24]}  Qe7 {[%clk 0:07:29]} 24. Qe5 {[%clk 0:02:19]}  f6 {[%clk 0:07:24]} 25. Qe2 {[%clk 0:02:19]}  Rd7 {[%clk 0:07:11]} 26. Re1 {[%clk 0:02:17]}  e5 {[%clk 0:07:03]} 27. Ba3 {[%clk 0:01:19]}  Kh8 {[%clk 0:06:52]} 28. Rac1 {[%clk 0:00:47]}  Qd8 {[%clk 0:06:49]} 29. Qg4 {[%clk 0:00:32]}  Rd6 {[%clk 0:06:16]} 30. Bxd5 {[%clk 0:00:10]}  Rxd5 {[%clk 0:06:18]} 31. Bxb4 {[%clk 0:00:11]}  Rd4 {[%clk 0:06:19]} 32. Qe6 {[%clk 0:00:13]}  Rdxb4 {[%clk 0:06:15]} 33. Rxc6 {[%clk 0:00:14]}  Rxb3 {[%clk 0:06:12]} 34. Rec1 {[%clk 0:00:09]}  Rb1 {[%clk 0:05:28]} 35. Rxb1 {[%clk 0:00:04]}  Rxb1+ {[%clk 0:05:29]} 36. Kh2 {[%clk 0:00:06]}  Rb8 {[%clk 0:05:29]} 37. a6 {[%clk 0:00:07]}  Qd3 {[%clk 0:05:07]} 38. Rc8+ {[%clk 0:00:03]}  Rxc8 {[%clk 0:05:09]} 39. Qxc8+ {[%clk 0:00:05]}  Kh7 {[%clk 0:05:10]} 40. Qb7 {[%clk 0:00:06]}  Qd4 {[%clk 0:05:08]} 41. Kg1 {[%clk 0:00:07]}  e4 {[%clk 0:05:01]} 42. h5 {[%clk 0:00:07]}  e3 {[%clk 0:03:53]} 43. Qb1+ {[%clk 0:00:07]}  Kg8 {[%clk 0:03:54]} 44. Qb3+ {[%clk 0:00:09]}  Kf8 {[%clk 0:03:54]} 45. fxe3 {[%clk 0:00:10]}  Qd6 {[%clk 0:03:41]} 46. Qb7 {[%clk 0:00:05]}  Qxg3+ {[%clk 0:03:35]} 47. Kf1 {[%clk 0:00:06]}  Qh3+ {[%clk 0:03:36]} 48. Kf2 {[%clk 0:00:05]}  Qh4+ {[%clk 0:03:18]} 49. Kg2 {[%clk 0:00:02]}  Qg5+ {[%clk 0:03:03]} 50. Kf2 {[%clk 0:00:03]}  Qc5 {[%clk 0:02:55]} 51. Qb8+ {[%clk 0:00:04]}  Ke7 {[%clk 0:02:57]} 52. Qb7+ {[%clk 0:00:05]}  Ke6 {[%clk 0:02:57]} 53. Qxg7 {[%clk 0:00:06]}  Qf5+ {[%clk 0:02:47]} 54. Ke1 {[%clk 0:00:07]}  Qa5+ {[%clk 0:02:47]} 55. Kf2 {[%clk 0:00:08]}  Qxa6 {[%clk 0:02:38]} 56. Qxh6 {[%clk 0:00:09]}  Qa2+ {[%clk 0:02:38]} 57. Kg3 {[%clk 0:00:10]}  Qe2 {[%clk 0:02:28]} 58. Kf4 {[%clk 0:00:05]}  Qf2+ {[%clk 0:02:19]} 59. Ke4 {[%clk 0:00:07]}  Qd2 {[%clk 0:02:07]} 60. Qh8 {[%clk 0:00:05]}  Qg2+ {[%clk 0:01:39]} 61. Kd3 {[%clk 0:00:05]}  Qd5+ {[%clk 0:01:37]} 62. Kc3 {[%clk 0:00:07]}  Qc5+ {[%clk 0:01:31]} 63. Kd3 {[%clk 0:00:08]}  Qb5+ {[%clk 0:01:32]} 64. Kc3 {[%clk 0:00:09]}  Qe5+ {[%clk 0:01:24]} 65. Kd3 {[%clk 0:00:11]}  Qf5+ {[%clk 0:01:26]} 66. Kc3 {[%clk 0:00:12]}  Kf7 {[%clk 0:01:26]} 67. h6 {[%clk 0:00:11]}  Qc5+ {[%clk 0:01:22]} 68. Kd3 {[%clk 0:00:12]}  Qd6+ {[%clk 0:01:23]} 69. Kc3 {[%clk 0:00:13]}  Qc7+ {[%clk 0:01:24]} 70. Kd3 {[%clk 0:00:14]}  Qd7+ {[%clk 0:01:26]} 71. Ke2 {[%clk 0:00:14]}  Kg6 {[%clk 0:01:26]} 72. Qf8 {[%clk 0:00:06]}  Qf7 {[%clk 0:01:25]} 73. Qh8 {[%clk 0:00:04]}  Qh7 {[%clk 0:01:22]} 74. Qf8 {[%clk 0:00:03]}  Qxh6 {[%clk 0:01:11]} 75. Qe8+ {[%clk 0:00:05]}  Kg5 {[%clk 0:01:11]} 76. Qb5+ {[%clk 0:00:03]}  f5 {[%clk 0:01:13]} 77. Qb8 {[%clk 0:00:04]}  Qh5+ {[%clk 0:00:53]} 78. Kd2 {[%clk 0:00:05]}  Qf7 {[%clk 0:00:42]} 79. Qf4+ {[%clk 0:00:06]}  Kg6 {[%clk 0:00:42]} 80. Qd6+ {[%clk 0:00:06]}  Qf6 {[%clk 0:00:43]} 81. Qg3+ {[%clk 0:00:07]}  Kf7 {[%clk 0:00:44]} 82. Qc7+ {[%clk 0:00:07]}  Qe7 {[%clk 0:00:45]} 83. Qc4+ {[%clk 0:00:09]}  Kg6 {[%clk 0:00:43]} 84. Qg8+ {[%clk 0:00:09]}  Kf6 {[%clk 0:00:43]} 85. Qh8+ {[%clk 0:00:11]}  Ke6 {[%clk 0:00:43]} 86. Qg8+ {[%clk 0:00:10]}  Ke5 {[%clk 0:00:42]} 87. Qg3+ {[%clk 0:00:08]}  Kd5 {[%clk 0:00:41]} 88. Qf3+ {[%clk 0:00:06]}  Ke6 {[%clk 0:00:42]} 89. Qa8 {[%clk 0:00:05]}  Qd7+ {[%clk 0:00:36]} 90. Ke2 {[%clk 0:00:06]}  Kd6 {[%clk 0:00:37]} 91. Qb8+ {[%clk 0:00:05]}  Kc5 {[%clk 0:00:37]} 92. Kf3 {[%clk 0:00:04]}  a5 {[%clk 0:00:34]} 93. Qf8+ {[%clk 0:00:04]}  Kc4 {[%clk 0:00:29]} 94. Kf4 {[%clk 0:00:05]}  a4 {[%clk 0:00:29]} 95. Qg8+ {[%clk 0:00:05]}  Qd5 {[%clk 0:00:29]} 96. Qc8+ {[%clk 0:00:06]}  Kd3 {[%clk 0:00:27]} 97. Qa6+ {[%clk 0:00:03]}  Qc4+ {[%clk 0:00:28]} 98. Qxc4+ {[%clk 0:00:03]}  Kxc4 {[%clk 0:00:28]} 99. Kxf5 {[%clk 0:00:05]}  a3 {[%clk 0:00:30]} 100. e4 {[%clk 0:00:07]}  a2 {[%clk 0:00:32]} 101. e5 {[%clk 0:00:09]}  a1=Q {[%clk 0:00:33]} 102. e6 {[%clk 0:00:11]}  Qg7 {[%clk 0:00:35]} 103. e7 {[%clk 0:00:13]}  Qxe7 {[%clk 0:00:36]} 0-1


[Site "Internet"]

[Event "Chessable Masters - Torneo preliminare"]
[White "Durarbayli, Vasif"]
[Black "Matamoros Franco, Carlos S."]
[WhiteFideId "13402935"]
[BlackFideId "3600017"]
[WhiteElo "2531"]
[BlackElo "2407"]
[Result "0-1"]
[Round "4"]
[TimeControl "600+2"]
[Date "2023.03.13"]
[WhiteClock "0:00:04"]
[BlackClock "0:01:07"]

1. e4 {[%clk 0:10:01]}  d6 {[%clk 0:09:53]} 2. d4 {[%clk 0:10:02]}  Nf6 {[%clk 0:09:54]} 3. Nc3 {[%clk 0:10:03]}  e5 {[%clk 0:09:55]} 4. Nf3 {[%clk 0:10:02]}  Nbd7 {[%clk 0:09:56]} 5. g3 {[%clk 0:09:59]}  Be7 {[%clk 0:09:50]} 6. Bg2 {[%clk 0:09:59]}  c6 {[%clk 0:09:51]} 7. a4 {[%clk 0:09:59]}  O-O {[%clk 0:09:51]} 8. O-O {[%clk 0:09:59]}  Re8 {[%clk 0:09:52]} 9. Re1 {[%clk 0:09:58]}  Bf8 {[%clk 0:09:53]} 10. h3 {[%clk 0:09:59]}  b6 {[%clk 0:09:53]} 11. Be3 {[%clk 0:09:50]}  Bb7 {[%clk 0:09:52]} 12. g4 {[%clk 0:09:31]}  h6 {[%clk 0:09:34]} 13. Qd2 {[%clk 0:07:42]}  a6 {[%clk 0:09:21]} 14. Rad1 {[%clk 0:07:38]}  b5 {[%clk 0:09:03]} 15. dxe5 {[%clk 0:07:38]}  dxe5 {[%clk 0:08:52]} 16. axb5 {[%clk 0:07:04]}  axb5 {[%clk 0:08:50]} 17. Ne2 {[%clk 0:06:58]}  Qc7 {[%clk 0:08:21]} 18. Ng3 {[%clk 0:06:54]}  Nc5 {[%clk 0:08:21]} 19. Nh4 {[%clk 0:06:43]}  Ne6 {[%clk 0:08:07]} 20. Nhf5 {[%clk 0:06:29]}  Nf4 {[%clk 0:07:17]} 21. Qc3 {[%clk 0:04:42]}  b4 {[%clk 0:06:44]} 22. Qd2 {[%clk 0:04:30]}  Rad8 {[%clk 0:06:18]} 23. Qc1 {[%clk 0:04:29]}  c5 {[%clk 0:05:54]} 24. Rxd8 {[%clk 0:03:56]}  Rxd8 {[%clk 0:05:49]} 25. f3 {[%clk 0:03:22]}  g6 {[%clk 0:05:42]} 26. Nh4 {[%clk 0:03:15]}  Be7 {[%clk 0:05:42]} 27. Ne2 {[%clk 0:03:03]}  Nxe2+ {[%clk 0:03:35]} 28. Rxe2 {[%clk 0:03:02]}  Nh7 {[%clk 0:03:31]} 29. Qe1 {[%clk 0:01:52]}  Ng5 {[%clk 0:03:28]} 30. Bf1 {[%clk 0:01:36]}  c4 {[%clk 0:03:10]} 31. Rd2 {[%clk 0:01:14]}  Rxd2 {[%clk 0:02:57]} 32. Bxd2 {[%clk 0:01:11]}  Qd8 {[%clk 0:02:34]} 33. Bxg5 {[%clk 0:00:29]}  Bxg5 {[%clk 0:02:27]} 34. Ng2 {[%clk 0:00:31]}  Qd4+ {[%clk 0:02:27]} 35. Qf2 {[%clk 0:00:32]}  Qxb2 {[%clk 0:01:38]} 36. Bxc4 {[%clk 0:00:33]}  Qc3 {[%clk 0:01:39]} 37. Bb3 {[%clk 0:00:20]}  Be7 {[%clk 0:01:39]} 38. Kh2 {[%clk 0:00:20]}  Bc5 {[%clk 0:01:40]} 39. Qe2 {[%clk 0:00:15]}  Qd4 {[%clk 0:01:18]} 40. h4 {[%clk 0:00:09]}  Qg1+ {[%clk 0:01:12]} 41. Kh3 {[%clk 0:00:10]}  Bf2 {[%clk 0:01:13]} 42. Bxf7+ {[%clk 0:00:03]}  Kg7 {[%clk 0:01:08]} 43. g5 {[%clk 0:00:04]}  Bc8+ {[%clk 0:01:07]} 0-1


[Site "Internet"]

[Event "Chessable Masters - Torneo preliminare"]
[White "Drygalov, Sergey"]
[Black "Salgado Lopez, Ivan"]
[WhiteFideId "24171743"]
[BlackFideId "2257327"]
[WhiteElo "2461"]
[BlackElo "2554"]
[Result "1-0"]
[Round "4"]
[TimeControl "600+2"]
[Date "2023.03.13"]
[WhiteClock "0:01:12"]
[BlackClock "0:00:36"]

1. d4 {[%clk 0:10:01]}  Nf6 {[%clk 0:09:58]} 2. c4 {[%clk 0:10:02]}  e6 {[%clk 0:09:59]} 3. Nf3 {[%clk 0:10:03]}  d5 {[%clk 0:10:00]} 4. Nc3 {[%clk 0:10:04]}  a6 {[%clk 0:10:00]} 5. cxd5 {[%clk 0:10:01]}  exd5 {[%clk 0:10:01]} 6. Bg5 {[%clk 0:10:02]}  Be6 {[%clk 0:10:01]} 7. e3 {[%clk 0:09:59]}  Nbd7 {[%clk 0:10:02]} 8. Bd3 {[%clk 0:09:51]}  h6 {[%clk 0:10:01]} 9. Bh4 {[%clk 0:09:43]}  g5 {[%clk 0:10:02]} 10. Bg3 {[%clk 0:09:44]}  Nh5 {[%clk 0:10:01]} 11. Qc2 {[%clk 0:09:29]}  Nxg3 {[%clk 0:09:48]} 12. hxg3 {[%clk 0:09:29]}  Bg7 {[%clk 0:09:31]} 13. O-O {[%clk 0:09:03]}  O-O {[%clk 0:09:05]} 14. Bh7+ {[%clk 0:08:07]}  Kh8 {[%clk 0:09:03]} 15. Bf5 {[%clk 0:08:08]}  c6 {[%clk 0:09:01]} 16. g4 {[%clk 0:08:07]}  Qf6 {[%clk 0:08:54]} 17. Ne2 {[%clk 0:08:02]}  Bxf5 {[%clk 0:08:52]} 18. Qxf5 {[%clk 0:07:28]}  Qxf5 {[%clk 0:08:48]} 19. gxf5 {[%clk 0:07:30]}  Rfe8 {[%clk 0:08:27]} 20. Rac1 {[%clk 0:07:08]}  Bf8 {[%clk 0:08:26]} 21. g3 {[%clk 0:06:59]}  Bd6 {[%clk 0:08:20]} 22. Kg2 {[%clk 0:06:59]}  Kg7 {[%clk 0:08:21]} 23. Rcd1 {[%clk 0:05:57]}  a5 {[%clk 0:07:48]} 24. Nc1 {[%clk 0:05:43]}  Kf6 {[%clk 0:07:19]} 25. Rh1 {[%clk 0:05:42]}  Rh8 {[%clk 0:07:12]} 26. g4 {[%clk 0:04:27]}  h5 {[%clk 0:07:00]} 27. Rxh5 {[%clk 0:04:15]}  Rxh5 {[%clk 0:06:59]} 28. gxh5 {[%clk 0:04:16]}  Kxf5 {[%clk 0:07:00]} 29. Rh1 {[%clk 0:03:40]}  Rh8 {[%clk 0:06:57]} 30. Nd3 {[%clk 0:03:30]}  f6 {[%clk 0:06:49]} 31. Nd2 {[%clk 0:03:20]}  g4 {[%clk 0:06:06]} 32. f3 {[%clk 0:03:14]}  gxf3+ {[%clk 0:05:44]} 33. Kxf3 {[%clk 0:03:07]}  Kg5 {[%clk 0:05:36]} 34. Rg1+ {[%clk 0:03:08]}  Kh6 {[%clk 0:05:36]} 35. e4 {[%clk 0:02:22]}  Re8 {[%clk 0:04:23]} 36. exd5 {[%clk 0:02:17]}  cxd5 {[%clk 0:04:19]} 37. Nf1 {[%clk 0:02:18]}  Kxh5 {[%clk 0:03:54]} 38. Ne3 {[%clk 0:02:17]}  f5 {[%clk 0:03:29]} 39. Nxd5 {[%clk 0:02:14]}  Re4 {[%clk 0:02:41]} 40. N3f4+ {[%clk 0:01:58]}  Bxf4 {[%clk 0:02:24]} 41. Nxf4+ {[%clk 0:02:00]}  Kh6 {[%clk 0:02:20]} 42. Rg6+ {[%clk 0:02:00]}  Kh7 {[%clk 0:02:20]} 43. Rd6 {[%clk 0:02:01]}  Nf8 {[%clk 0:02:09]} 44. Rf6 {[%clk 0:01:18]}  Kg7 {[%clk 0:00:58]} 45. Rxf5 {[%clk 0:01:19]}  Rxd4 {[%clk 0:00:56]} 46. Rxf8 {[%clk 0:01:14]}  Rd2 {[%clk 0:00:38]} 47. Rf5 {[%clk 0:01:12]}  Rxb2 {[%clk 0:00:32]} 48. Rxa5 {[%clk 0:01:12]}  b6 {[%clk 0:00:34]} 49. Ra6 {[%clk 0:01:10]}  b5 {[%clk 0:00:35]} 50. Ke3 {[%clk 0:01:10]}  b4 {[%clk 0:00:34]} 51. Nd3 {[%clk 0:01:12]}  Rb1 {[%clk 0:00:36]} 52. Rb6 {[%clk 0:01:12]} 1-0


[Site "Internet"]

[Event "Chessable Masters - Torneo preliminare"]
[White "Hammer, Jon Ludvig"]
[Black "Tregubov, Pavel V."]
[WhiteFideId "1503707"]
[BlackFideId "4115341"]
[WhiteElo "2647"]
[BlackElo "2522"]
[Result "1/2-1/2"]
[Round "4"]
[TimeControl "600+2"]
[Date "2023.03.13"]
[WhiteClock "0:05:30"]
[BlackClock "0:06:00"]

1. d4 {[%clk 0:09:50]}  Nf6 {[%clk 0:09:58]} 2. c4 {[%clk 0:09:48]}  e6 {[%clk 0:09:59]} 3. Nc3 {[%clk 0:09:48]}  Bb4 {[%clk 0:10:00]} 4. e3 {[%clk 0:09:48]}  b6 {[%clk 0:09:59]} 5. Ne2 {[%clk 0:09:39]}  Ne4 {[%clk 0:09:56]} 6. Qc2 {[%clk 0:09:39]}  Bb7 {[%clk 0:09:57]} 7. a3 {[%clk 0:09:38]}  Bxc3+ {[%clk 0:09:58]} 8. Nxc3 {[%clk 0:09:40]}  Nxc3 {[%clk 0:10:00]} 9. Qxc3 {[%clk 0:09:41]}  d6 {[%clk 0:10:01]} 10. d5 {[%clk 0:09:19]}  O-O {[%clk 0:09:52]} 11. b4 {[%clk 0:08:16]}  a5 {[%clk 0:09:52]} 12. Bb2 {[%clk 0:08:14]}  Qg5 {[%clk 0:09:53]} 13. h4 {[%clk 0:08:09]}  axb4 {[%clk 0:09:54]} 14. axb4 {[%clk 0:07:50]}  Rxa1+ {[%clk 0:09:54]} 15. Bxa1 {[%clk 0:07:52]}  Qg6 {[%clk 0:09:55]} 16. Rh3 {[%clk 0:07:23]}  Qb1+ {[%clk 0:09:44]} 17. Kd2 {[%clk 0:07:21]}  e5 {[%clk 0:09:36]} 18. Bd3 {[%clk 0:06:35]}  Qg1 {[%clk 0:09:16]} 19. Ke2 {[%clk 0:06:36]}  Nd7 {[%clk 0:09:02]} 20. Qe1 {[%clk 0:05:29]}  Qxg2 {[%clk 0:08:07]} 21. Bf5 {[%clk 0:05:27]}  Nf6 {[%clk 0:05:56]} 22. Rg3 {[%clk 0:05:26]}  Qh2 {[%clk 0:05:56]} 23. Rh3 {[%clk 0:05:27]}  Qg2 {[%clk 0:05:57]} 24. Rg3 {[%clk 0:05:29]}  Qh2 {[%clk 0:05:59]} 25. Rh3 {[%clk 0:05:30]}  Qg2 {[%clk 0:06:00]} 1/2-1/2


[Site "Internet"]

[Event "Chessable Masters - Torneo preliminare"]
[White "Darini, Pouria"]
[Black "Ibarra Jerez, Jose Carlos"]
[WhiteFideId "12502200"]
[BlackFideId "2226332"]
[WhiteElo "2573"]
[BlackElo "2546"]
[Result "1-0"]
[Round "4"]
[TimeControl "600+2"]
[Date "2023.03.13"]
[WhiteClock "0:01:38"]
[BlackClock "0:02:09"]

1. e4 {[%clk 0:10:00]}  c5 {[%clk 0:10:00]} 2. Nf3 {[%clk 0:10:00]}  Nc6 {[%clk 0:10:01]} 3. Bb5 {[%clk 0:10:01]}  e6 {[%clk 0:10:02]} 4. O-O {[%clk 0:09:55]}  Nge7 {[%clk 0:10:02]} 5. b3 {[%clk 0:09:55]}  Nd4 {[%clk 0:10:01]} 6. Nxd4 {[%clk 0:09:53]}  cxd4 {[%clk 0:10:03]} 7. Bb2 {[%clk 0:09:49]}  a6 {[%clk 0:10:04]} 8. Be2 {[%clk 0:09:48]}  Nc6 {[%clk 0:10:04]} 9. c3 {[%clk 0:09:46]}  Bc5 {[%clk 0:10:02]} 10. b4 {[%clk 0:09:45]}  Ba7 {[%clk 0:09:50]} 11. a4 {[%clk 0:09:46]}  dxc3 {[%clk 0:09:34]} 12. dxc3 {[%clk 0:09:38]}  O-O {[%clk 0:09:26]} 13. b5 {[%clk 0:09:18]}  Ne5 {[%clk 0:09:14]} 14. Ba3 {[%clk 0:08:19]}  Re8 {[%clk 0:09:05]} 15. Bd6 {[%clk 0:08:20]}  f6 {[%clk 0:08:33]} 16. Na3 {[%clk 0:08:07]}  axb5 {[%clk 0:07:32]} 17. Nxb5 {[%clk 0:08:02]}  Bb6 {[%clk 0:07:33]} 18. Qd2 {[%clk 0:06:02]}  Nf7 {[%clk 0:07:12]} 19. Rfd1 {[%clk 0:05:53]}  Ba5 {[%clk 0:06:58]} 20. Bg3 {[%clk 0:05:03]}  Ra6 {[%clk 0:06:29]} 21. Nd4 {[%clk 0:05:03]}  Rb6 {[%clk 0:06:09]} 22. Bb5 {[%clk 0:04:57]}  Nd6 {[%clk 0:05:32]} 23. Qd3 {[%clk 0:04:47]}  Qc7 {[%clk 0:04:40]} 24. Nb3 {[%clk 0:04:36]}  Qxc3 {[%clk 0:04:29]} 25. Nxa5 {[%clk 0:04:06]}  Nxb5 {[%clk 0:04:04]} 26. axb5 {[%clk 0:04:07]}  Qxd3 {[%clk 0:04:00]} 27. Rxd3 {[%clk 0:04:07]}  Rxb5 {[%clk 0:04:01]} 28. Nc4 {[%clk 0:04:07]}  Rc5 {[%clk 0:04:02]} 29. Nd6 {[%clk 0:04:06]}  Rf8 {[%clk 0:04:03]} 30. Rb3 {[%clk 0:03:41]}  e5 {[%clk 0:03:47]} 31. Rb6 {[%clk 0:03:31]}  g6 {[%clk 0:03:31]} 32. f3 {[%clk 0:03:32]}  Kg7 {[%clk 0:03:22]} 33. Bf2 {[%clk 0:03:33]}  Rc2 {[%clk 0:03:22]} 34. g4 {[%clk 0:03:25]}  Rh8 {[%clk 0:03:19]} 35. Rd1 {[%clk 0:02:40]}  Rc7 {[%clk 0:03:12]} 36. Be3 {[%clk 0:02:35]}  h6 {[%clk 0:03:04]} 37. Rc1 {[%clk 0:02:35]}  Rc6 {[%clk 0:03:00]} 38. h4 {[%clk 0:02:13]}  Rf8 {[%clk 0:02:52]} 39. h5 {[%clk 0:02:09]}  g5 {[%clk 0:02:51]} 40. Kf2 {[%clk 0:02:07]}  Rd8 {[%clk 0:02:48]} 41. Ke2 {[%clk 0:02:08]}  Kf8 {[%clk 0:02:49]} 42. Rd1 {[%clk 0:01:46]}  Kg7 {[%clk 0:02:34]} 43. Nf5+ {[%clk 0:01:46]}  Kh7 {[%clk 0:02:36]} 44. Rd6 {[%clk 0:01:47]}  Rf8 {[%clk 0:02:33]} 45. Kd3 {[%clk 0:01:47]}  Rf7 {[%clk 0:02:27]} 46. Bd2 {[%clk 0:01:47]}  Rf8 {[%clk 0:02:27]} 47. Bb4 {[%clk 0:01:48]}  Rf7 {[%clk 0:02:28]} 48. Ba3 {[%clk 0:01:49]}  Kh8 {[%clk 0:02:10]} 49. Nxh6 {[%clk 0:01:47]}  Rg7 {[%clk 0:02:07]} 50. Rxf6 {[%clk 0:01:38]}  Kh7 {[%clk 0:02:08]} 51. Nf5 {[%clk 0:01:38]}  Rg8 {[%clk 0:02:09]} 1-0


[Site "Internet"]